bitfinex-derivatives/quotes_ETHF0:USTF0_20251107
["timestamp","ask_amount","ask_price","bid_price","bid_amount"]
[1762475071252,3.904e-05,3308.5,3308.4,0.48993]
[1762475073457,0.48995904,3308.5,3308.4,0.48993]
[1762475074246,3.904e-05,3308.5,3308.4,0.48993]
[1762475075855,3.904e-05,3308.5,3308.4,8.61083]
[1762475077254,7.693e-05,3308.8,3308.7,0.52329]
[1762475077455,7.693e-05,3308.8,3308.7,3.73109]
[1762475077650,7.693e-05,3308.8,3308.7,3.85199]
[1762475078151,0.00384894,3308.8,3308.7,17.89679]
[1762475078353,4.894e-05,3308.8,3308.7,3.85199]
[1762475078551,4.894e-05,3308.8,3308.7,3.73109]
[1762475079355,0.85951894,3308.8,3308.7,3.2078]
[1762475079746,0.98041895,3308.8,3308.7,3.2078]
[1762475081147,0.98041895,3308.8,3308.1,3.789e-05]
[1762475081148,0.85955,3308.3,3308.1,3.789e-05]
[1762475081355,0.48996,3308.2,3308.1,3.789e-05]
[1762475082060,0.61088,3308.2,3308.1,0.49001789]
[1762475082254,0.98048,3308.2,3308.1,0.49001789]
[1762475082457,0.61088,3308.2,3308.1,3.789e-05]
[1762475083958,0.48996,3308.2,3308.1,3.789e-05]
[1762475084161,0.61088,3308.2,3308.1,3.789e-05]
[1762475086761,0.48996,3308.2,3308.1,0.48999789]
[1762475087159,0.48996,3308.2,3308.1,3.789e-05]
[1762475087556,0.61088,3308.2,3308.1,3.789e-05]
[1762475087868,0.48996,3308.2,3308.1,0.48999789]
[1762475088264,0.48996,3308.2,3308.1,3.789e-05]
[1762475091968,3.69775,3308.3,3308.2,0.48996]
[1762475092461,0.48996,3308.2,3308.1,3.789e-05]
[1762475093164,0.49007,3307.5,3307.4,3.2078]
[1762475093368,3.2078,3307.5,3306.9,3.32872]
[1762475093667,0.49014,3307.0,3306.6,0.34326]
[1762475094170,0.49016,3306.9,3306.6,0.34326]
[1762475094361,0.85979,3306.7,3306.6,0.12096]
[1762475094561,1.0812,3306.6,3306.5,0.00266906]
[1762475094962,1.31439883,3306.6,3306.5,0.00266906]
[1762475096370,0.2214,3306.6,3305.6,0.49034]
[1762475096668,0.2214,3306.6,3305.3,3.2078]
[1762475096669,3.2078,3305.9,3305.3,3.2078]
[1762475096864,0.49038,3305.5,3305.4,0.49038]
[1762475097261,0.00276527,3305.5,3305.4,0.00381155]
[1762475097467,0.1149841,3305.5,3305.4,0.00381155]
[1762475097676,0.4845841,3305.5,3305.4,0.00381155]
[1762475100576,0.1149841,3305.5,3305.4,0.86769155]
[1762475101176,0.1149841,3305.5,3305.4,0.49419155]
[1762475102273,0.1149841,3305.5,3305.4,1.08999155]
[1762475102670,0.1149841,3305.5,3305.4,1.21101154]
[1762475103962,0.00276527,3305.5,3305.4,1.08999155]
[1762475104167,0.1149841,3305.5,3305.4,1.08999155]
[1762475104661,0.1149841,3305.5,3305.4,0.59961155]
[1762475104969,0.1149841,3305.5,3305.4,1.155e-05]
[1762475104970,4.2314441,3305.5,3305.4,1.155e-05]
[1762475105272,0.49053,3304.4,3304.3,0.49053]
[1762475105662,0.6918689,3304.4,3304.3,0.49053]
[1762475105871,0.2013389,3304.4,3304.3,0.49053]
[1762475106065,0.2013389,3304.4,3304.3,0.49357878]
[1762475106266,0.2013389,3304.4,3304.3,0.89907878]
[1762475106574,0.6196389,3304.4,3304.3,0.49358878]
[1762475106771,0.2013389,3304.4,3304.3,0.49358878]
[1762475107366,1.1101689,3304.4,3304.3,0.00304878]
[1762475107569,0.90887,3304.1,3304.0,0.00453789]
[1762475107769,0.73986,3304.2,3304.1,0.49057]
[1762475107972,3.21233789,3304.7,3304.2,0.49056]
[1762475107973,0.12106,3304.3,3304.2,0.49056]
[1762475108171,3.21233789,3304.7,3304.2,0.49056]
[1762475108364,0.12106,3304.3,3304.2,0.49056]
[1762475108569,0.49053,3304.4,3304.2,0.00244576]
[1762475108764,0.49054,3304.3,3304.2,0.49300576]
[1762475109166,0.8129389,3304.3,3304.2,0.00244576]
[1762475109576,0.90884,3304.3,3304.2,0.00244576]
[1762475109770,1.2312389,3304.3,3304.2,0.00244576]
[1762475110476,4.4390389,3304.3,3304.2,0.49300576]
[1762475110672,4.4390389,3304.3,3304.2,0.00244576]
[1762475110875,3.9484989,3304.3,3304.2,0.00244576]
[1762475111075,4.4390389,3304.3,3304.2,0.00244576]
[1762475111472,3.9484989,3304.3,3304.2,0.49300576]
[1762475111677,0.2013389,3304.3,3304.2,12.33430576]
[1762475111876,3.789e-05,3304.7,3304.6,0.896]
[1762475112174,3.2078,3305.3,3305.1,0.49042]
[1762475112379,3.2078,3305.3,3304.3,0.12104]
[1762475112380,3.2078,3305.3,3304.7,0.49048]
[1762475112580,3.2078,3305.3,3304.2,3.43824576]
[1762475112776,3.2078,3305.3,3305.2,0.89591]
[1762475112976,3.2078,3305.3,3304.6,3.2078]
[1762475113172,0.2493,3304.8,3304.2,0.00244576]
[1762475113375,0.4183,3304.3,3304.2,0.00244576]
[1762475113572,0.90884,3304.3,3304.2,0.00244576]
[1762475114180,1.0299,3304.3,3304.2,0.00244576]
[1762475115480,1.0299,3304.3,3302.9,3.2078]
[1762475115481,0.4183,3302.6,3301.7,3.2078]
[1762475115673,0.9091,3302.6,3302.4,0.49082]
[1762475115873,0.4183,3302.6,3302.4,0.49082]
[1762475116277,0.00298029,3302.6,3302.4,0.00365487]
[1762475116470,0.00298029,3302.6,3302.4,0.49447487]
[1762475117778,0.12112,3303.3,3302.8,0.49076]
[1762475117979,3.2078,3303.5,3302.6,0.228]
[1762475118177,3.2078,3303.5,3303.4,0.49068]
[1762475118579,0.4907,3303.3,3303.1,0.49072]
[1762475118775,0.00311355,3303.3,3303.1,0.49072]
[1762475118981,0.00311355,3303.3,3303.2,0.4055]
[1762475119785,0.00311355,3303.3,3303.1,0.49072]
[1762475120484,0.00311355,3303.3,3303.0,0.49073]
[1762475120682,0.49074,3303.0,3302.8,0.61186]
[1762475120879,0.49074,3303.0,3302.8,0.49076]
[1762475121079,3.2078,3303.1,3302.5,3.2078]
[1762475121080,0.49077,3302.8,3302.7,0.49077]
[1762475121276,0.49078,3302.7,3302.5,3.2078]
[1762475121483,0.49081,3302.5,3302.4,0.49446487]
[1762475121881,0.49081,3302.5,3302.4,0.00365487]
[1762475122080,0.90911,3302.5,3302.4,0.00365487]
[1762475122681,0.53942,3302.5,3302.4,0.00365487]
[1762475122983,3.2078,3302.7,3302.4,0.00365487]
[1762475123289,0.4908,3302.6,3302.5,0.49079]
[1762475123489,0.4183,3302.5,3302.4,0.00365487]
[1762475123894,0.4183,3302.3,3302.2,0.00453789]
[1762475124192,4.40710115,3302.3,3302.2,0.00453789]
[1762475124390,3.2078,3302.3,3302.2,0.00453789]
[1762475124986,3.2078,3302.3,3302.2,0.00757854]
[1762475126083,0.49083,3302.4,3302.2,0.00757854]
[1762475126284,3.6261,3302.3,3302.2,0.00757854]
[1762475126688,4.40718725,3302.3,3302.2,0.00757854]
[1762475126890,4.52830725,3302.3,3302.2,0.00757854]
[1762475128087,5.01914725,3302.3,3302.2,0.00757854]
[1762475128292,0.49099,3301.3,3301.2,0.49099]
[1762475128488,3.69877,3301.5,3300.9,3.2078]
[1762475128689,0.49098,3301.4,3300.9,3.2078]
[1762475128888,0.49098,3301.4,3301.0,0.12116]
[1762475129083,4.11712,3301.1,3301.0,0.12116]
[1762475129288,4.40698843,3301.1,3301.0,0.00246087]
[1762475129495,4.89800843,3301.1,3301.0,0.00246087]
[1762475129989,4.89800843,3301.1,3300.7,0.00453789]
[1762475129990,0.90936,3300.8,3300.7,0.00453789]
[1762475130297,1.68965436,3300.8,3300.7,0.00453789]
[1762475131099,0.00287752,3300.8,3300.7,8.90413348]
[1762475131488,0.00287752,3300.8,3300.7,9.02531348]
[1762475131888,0.00453789,3301.4,3301.3,0.49099]
[1762475131889,0.49550789,3301.4,3301.3,0.49099]
[1762475132088,0.78438977,3301.4,3300.7,0.00755348]
[1762475132288,0.49101,3301.2,3300.9,0.49104]
[1762475132591,3.2078,3301.1,3300.7,0.00755348]
[1762475132892,0.49106,3300.8,3300.7,0.49863348]
[1762475133085,0.49106,3300.8,3300.7,0.90413348]
[1762475133691,3.2106714,3301.1,3301.0,0.49103]
[1762475134093,3.7016914,3301.1,3301.0,0.49103]
[1762475134393,3.2106714,3301.1,3301.0,0.49103]
[1762475134587,0.0028714,3301.1,3301.0,0.85483]
[1762475134788,0.0028714,3301.1,3301.0,0.97601]
[1762475135698,0.4938914,3301.1,3301.0,0.48498]
[1762475136100,0.4938914,3301.1,3301.0,0.49103]
[1762475136709,0.0028714,3301.1,3301.0,0.85483]
[1762475137212,3.2078,3301.9,3301.3,0.3638]
[1762475137407,3.2078,3302.3,3302.0,0.49087]
[1762475137712,0.49087,3302.1,3301.4,0.12114]
[1762475137908,0.49087,3302.1,3301.3,3.2078]
[1762475137909,0.49093,3301.8,3301.6,0.49094]
[1762475138110,0.2109,3302.4,3299.4,41.0285]
[1762475138111,0.49102,3301.1,3301.0,0.345]
[1762475138312,0.49102,3301.1,3300.7,3.21535348]
[1762475138313,0.49103,3301.0,3300.7,3.21535348]
[1762475138508,0.00225649,3301.1,3300.7,3.21535348]
[1762475138708,0.49103,3301.0,3300.9,0.49105]
[1762475139110,0.00225649,3301.1,3300.7,3.33653348]
[1762475139613,0.83946,3300.8,3300.7,0.00755348]
[1762475139812,1.62277055,3300.8,3300.7,0.00755348]
[1762475140012,0.49106,3300.9,3300.7,0.49863348]
[1762475140210,0.49106,3300.8,3300.7,0.00755348]
[1762475140815,1.62288771,3300.8,3300.7,0.00755348]
[1762475141417,1.74406771,3300.8,3300.7,0.00755348]
[1762475141618,1.25300771,3300.8,3300.7,0.49863348]
[1762475142116,1.74406771,3300.8,3300.7,0.00755348]
[1762475143912,1.62288771,3300.8,3300.7,0.00755348]
[1762475144518,1.97985089,3300.8,3299.9,3.2078]
[1762475144714,0.49115,3300.2,3300.0,0.49118]
[1762475145019,0.49124,3299.6,3299.5,3.2078]
[1762475145315,0.7860416,3299.6,3299.1,3.2078]
[1762475145618,0.00454482,3299.7,3299.6,0.83624]
[1762475145820,0.79052432,3299.7,3299.6,0.49124]
[1762475146214,1.28174432,3299.7,3299.6,0.49124]
[1762475146418,0.79052432,3299.7,3299.6,0.49124]
[1762475146722,1.28174432,3299.7,3299.6,0.49124]
[1762475147113,0.79052432,3299.7,3299.6,0.83624]
[1762475147321,0.00454482,3299.7,3299.6,0.83624]
[1762475147820,0.00454482,3299.7,3299.6,0.95746]
[1762475148724,0.00454482,3299.7,3299.6,8.95746]
[1762475149613,1.07524318,3300.7,3299.6,8.95746]
[1762475149614,1.07524318,3300.8,3300.6,0.49108]
[1762475149821,0.78585577,3300.7,3300.6,0.49108]
[1762475151320,0.78585577,3300.7,3300.6,0.83608]
[1762475151626,0.00454482,3301.0,3300.9,0.49105]
[1762475151826,0.7913329,3301.0,3300.9,0.83605]
[1762475152324,0.00454482,3301.0,3300.9,0.83605]
[1762475152723,0.00454482,3301.0,3300.9,0.95723]
[1762475154321,0.00454482,3301.0,3300.3,3.2078]
[1762475154517,0.00454482,3301.0,3300.1,0.12118]
[1762475154518,3.2078,3300.9,3300.1,0.12118]
[1762475154719,0.78762456,3300.8,3300.7,0.49108]
[1762475154924,0.00454482,3301.0,3300.9,0.83605]
[1762475156124,0.12118,3301.8,3301.7,0.345]
[1762475156425,3.2078,3302.5,3302.4,0.49082]
[1762475156732,3.2078,3302.9,3302.7,0.49077]
[1762475157026,3.2078,3302.9,3302.8,0.49076]
[1762475157229,3.99755416,3302.9,3302.8,0.4932925]
[1762475157820,4.48830416,3302.9,3302.8,0.0025325]
[1762475158022,4.83670416,3302.9,3302.8,0.0025325]
[1762475158620,4.95780417,3302.9,3302.8,0.0025325]
[1762475160331,0.3484,3302.2,3301.3,3.2078]
[1762475160530,0.2109,3302.4,3301.3,3.2078]
[1762475160826,0.49084,3302.3,3302.0,0.49087]
[1762475161028,3.2078,3302.5,3302.4,0.83582]
[1762475161330,3.21052522,3302.9,3302.8,0.49076]
[1762475161630,0.00272522,3302.9,3302.8,0.49076]
[1762475161828,0.00272522,3302.9,3302.8,0.83576]
[1762475162423,0.00272522,3302.9,3302.8,8.83576]
[1762475162623,3.2078,3303.3,3303.0,0.2285]
[1762475162824,3.2078,3303.3,3303.2,0.8357]
[1762475163436,0.61173001,3303.8,3303.1,3.2078]
[1762475163733,0.61958669,3303.8,3303.7,0.49063]
[1762475163925,0.00785668,3303.8,3303.7,0.49063]
[1762475164227,0.35625668,3303.8,3303.5,3.2078]
[1762475164428,0.2109,3303.6,3302.7,3.2078]
[1762475164619,0.49069,3303.3,3302.7,3.2078]
[1762475164823,0.49069,3303.3,3302.8,0.1211]
[1762475165034,0.49075,3302.9,3302.8,0.61186]
[1762475165229,0.49075,3302.9,3302.8,0.1211]
[1762475165428,0.4908,3302.6,3302.4,0.00368505]
[1762475165625,0.4908,3302.6,3302.4,0.49450505]
[1762475165832,0.61189,3302.8,3302.6,0.49079]
[1762475166027,0.49078,3302.7,3302.6,0.49079]
[1762475166222,0.49081,3302.5,3302.4,0.00368505]
[1762475166533,0.82671,3302.5,3302.4,0.00368505]
[1762475166737,0.3359,3302.5,3302.4,0.00368505]
[1762475166934,0.82671,3302.5,3302.4,0.00368505]
[1762475167327,0.94783,3302.5,3302.4,0.00368505]
[1762475168027,0.45702,3302.5,3302.4,0.49450505]
[1762475168534,0.94783,3302.5,3302.4,0.00368505]
[1762475170026,4.15563,3302.5,3302.4,0.00368505]
[1762475171126,3.66482,3302.5,3302.4,0.49450505]
[1762475171736,4.15563,3302.5,3302.4,0.49450505]
[1762475172037,4.03451,3302.5,3302.4,0.49450505]
[1762475172738,4.03451,3302.5,3302.4,0.00368505]
[1762475173138,4.15563,3302.5,3302.4,0.00368505]
[1762475173534,0.2058,3301.8,3300.9,3.2078]
[1762475173730,0.49106,3300.8,3300.5,3.2078]
[1762475173936,3.2078,3301.5,3301.4,0.49097]
[1762475174135,3.2078,3301.5,3300.5,3.2078]
[1762475174336,3.2078,3301.5,3301.3,0.49097]
[1762475174634,0.49097,3301.4,3301.3,0.00226522]
[1762475175044,0.00341871,3301.5,3301.4,0.82117]
[1762475175340,0.00454482,3301.7,3301.6,0.82114]
[1762475175837,0.00454482,3301.7,3301.6,0.9423]
[1762475176041,0.49547482,3301.7,3301.3,3.21006522]
[1762475176334,0.00837422,3301.7,3301.3,3.21006522]
[1762475176640,0.00837422,3301.7,3301.6,0.82114]
[1762475177240,0.49097,3301.4,3301.3,3.21006522]
[1762475177539,0.00837422,3301.7,3301.5,0.49096]
[1762475178341,0.49097,3301.5,3301.4,0.49097]
[1762475178640,0.00837422,3301.7,3301.3,3.21006522]
[1762475178641,0.49097,3301.4,3301.3,3.21006522]
[1762475178835,0.82687,3301.4,3301.3,3.21006522]
[1762475179036,0.82687,3301.4,3301.3,0.00226522]
[1762475180039,7.00643,3301.4,3301.3,0.00226522]
[1762475180240,0.94803,3301.4,3301.3,0.00226522]
[1762475182438,3.2078,3301.6,3301.3,0.00226522]
[1762475182638,3.69876,3301.6,3301.5,0.49096]
[1762475182839,0.00837422,3301.7,3301.6,0.82114]
[1762475183438,0.00837422,3301.7,3301.6,0.9423]
[1762475183644,0.00837422,3301.7,3301.6,0.45136]
[1762475183840,0.49097,3301.5,3301.4,0.49097]
[1762475184046,0.00837422,3301.7,3301.6,0.49094]
[1762475184246,0.00837422,3301.7,3301.6,0.82114]
[1762475184543,0.49930422,3301.7,3301.6,0.82114]
[1762475184742,0.49930422,3301.7,3301.6,0.9423]
[1762475185134,0.49930422,3301.7,3301.6,0.82114]
[1762475185945,0.00837422,3301.7,3301.6,0.82114]
[1762475186143,3.2078,3302.4,3302.3,0.82104]
[1762475186745,0.49082,3302.4,3302.3,0.82104]
[1762475186948,0.49087,3302.1,3302.0,0.12112]
[1762475187250,0.49087,3302.1,3301.8,0.2101]
[1762475187251,0.49088,3302.0,3301.4,3.2078]
[1762475187442,0.00344909,3302.1,3301.8,0.49091]
[1762475187754,0.49094,3301.6,3301.5,0.61208]
[1762475187946,0.49096,3301.5,3301.4,3.69877]
[1762475188547,3.32894,3302.0,3301.4,3.2078]
[1762475188745,0.49091,3301.8,3301.7,0.49091]
[1762475190043,0.00344909,3302.1,3302.0,0.82108]
[1762475190643,0.00344909,3302.1,3302.0,0.94222]
[1762475190843,0.49431909,3302.1,3302.0,0.45134]
[1762475191147,0.49431909,3302.1,3302.0,0.82108]
[1762475191342,0.00344909,3302.1,3302.0,0.82108]
[1762475191544,0.49431909,3302.1,3302.0,0.3302]
[1762475192048,0.00344909,3302.1,3302.0,0.82108]
[1762475192942,0.00344909,3302.1,3301.9,0.12114]
[1762475193139,0.49088,3302.0,3301.9,0.12114]
[1762475193343,0.49088,3302.0,3301.9,0.4909]
[1762475193848,0.4909,3301.9,3301.8,3.2078]
[1762475194650,0.8268,3301.9,3301.8,3.2078]
[1762475194850,0.49093,3301.7,3301.6,0.49094]
[1762475195054,0.49096,3301.5,3301.4,0.61212]
[1762475195247,0.49096,3301.5,3301.4,0.49096]
[1762475195551,0.49097,3301.4,3301.3,0.49323522]
[1762475195939,0.79897,3301.4,3301.3,0.00226522]
[1762475197851,0.12116,3301.5,3301.4,0.49097]
[1762475198051,0.49093,3301.7,3301.6,0.49092]
[1762475198246,3.21124909,3302.1,3301.3,0.00226522]
[1762475198448,0.49092,3301.9,3301.5,0.1813]
[1762475198750,0.49093,3301.7,3301.6,0.80614]
[1762475198955,0.49091,3301.8,3301.7,0.49093]
[1762475199251,0.81883,3301.7,3301.6,0.12114]
[1762475199449,0.81887,3301.4,3301.3,0.00226522]
[1762475200340,3.2078,3301.7,3301.3,0.00226522]
[1762475200341,3.2078,3301.7,3301.4,0.3152]
[1762475200545,3.21124909,3302.1,3302.0,0.49088]
[1762475200745,0.00344909,3302.1,3302.0,0.80608]
[1762475201146,0.49431909,3302.1,3302.0,0.43634]
[1762475201448,0.49431909,3302.1,3301.9,0.12114]
[1762475201646,0.00344909,3302.1,3302.0,0.49088]
[1762475202150,0.49088,3302.0,3301.9,0.12114]
[1762475202342,0.00344909,3302.1,3301.7,0.49091]
[1762475202343,0.4909,3301.9,3301.7,0.49091]
[1762475202540,0.4909,3301.9,3301.5,0.12114]
[1762475202743,0.12458909,3302.1,3301.7,0.49091]
[1762475202947,0.49091,3301.8,3301.7,0.49091]
[1762475203648,0.12458909,3302.1,3301.9,0.49089]
[1762475203858,0.12458909,3302.1,3302.0,0.49088]
[1762475204152,0.00344909,3302.1,3302.0,0.80608]
[1762475204351,0.00344909,3302.1,3302.0,0.49088]
[1762475204749,0.00344909,3302.1,3302.0,0.80608]
[1762475205556,0.49431909,3302.1,3302.0,0.80608]
[1762475206248,0.00344909,3302.1,3302.0,0.80608]
[1762475206653,0.49431909,3302.1,3301.9,3.2078]
[1762475206856,0.49088,3302.0,3301.9,3.2078]
[1762475207152,0.49431909,3302.1,3302.0,0.49088]
[1762475207649,0.49088,3302.0,3301.9,3.2078]
[1762475208245,0.00344909,3302.1,3302.0,0.80608]
[1762475208651,0.00344909,3302.1,3302.0,0.92722]
[1762475209650,0.00344909,3302.1,3302.0,0.80608]
[1762475209845,0.00344909,3302.1,3302.0,0.3152]
[1762475210151,0.00344909,3302.1,3302.0,0.92722]
[1762475210553,0.00454482,3302.4,3302.3,0.80604]
[1762475210747,0.00454482,3302.4,3302.3,4.01384]
[1762475211154,0.00454482,3302.4,3302.3,4.13496]
[1762475211358,0.00454482,3302.4,3302.3,3.64412]
[1762475211656,1.0217583,3302.4,3302.3,3.2078]
[1762475211851,0.49092,3301.8,3301.6,3.2078]
[1762475212049,0.4909,3301.9,3301.8,0.49091]
[1762475212449,0.81883,3301.7,3301.6,3.2078]
[1762475212854,0.93999,3301.7,3301.6,3.2078]
[1762475213456,0.44906,3301.7,3301.6,3.69874]
[1762475213656,0.49093,3301.7,3301.6,3.69874]
[1762475213857,0.4909,3302.0,3301.8,0.4909]
[1762475214157,0.81883,3301.7,3301.6,3.2078]
[1762475214556,0.49097,3301.4,3301.3,0.49325522]
[1762475214764,0.49097,3301.4,3301.3,0.00226522]
[1762475215063,0.3279,3301.5,3301.3,0.00226522]
[1762475215864,0.81887,3301.4,3301.3,0.00226522]
[1762475216656,0.94003,3301.4,3301.3,0.00226522]
[1762475220855,0.49111,3300.5,3300.4,3.69892]
[1762475221060,0.49108,3300.7,3300.6,0.49109]
[1762475221261,0.1954,3301.0,3300.7,0.49107]
[1762475221760,0.1954,3301.0,3300.7,0.49493319]
[1762475222157,0.4909,3301.9,3301.5,0.3152]
[1762475222362,3.4022,3302.0,3301.7,0.49092]
[1762475222572,0.49096,3301.6,3301.5,0.49095]
[1762475222963,0.49096,3301.6,3301.4,3.2078]
[1762475222964,0.3279,3301.3,3301.2,0.12116]
[1762475223168,0.81896,3300.8,3300.7,0.00386319]
[1762475223367,4.02676,3300.8,3300.7,0.00386319]
[1762475223874,0.49124,3299.7,3299.6,0.49124]
[1762475224371,0.49124,3299.7,3299.6,0.61246]
[1762475224770,0.49463534,3299.7,3299.6,0.12476703]
[1762475224967,0.49463534,3299.7,3299.6,0.61600703]
[1762475225675,0.49463534,3299.7,3299.6,0.12476703]
[1762475225865,0.49463534,3299.7,3299.6,0.00354703]
[1762475226277,0.77583534,3299.7,3299.6,0.00354703]
[1762475227267,0.00339534,3299.7,3299.6,0.77058703]
[1762475227563,0.00294154,3300.0,3299.9,0.767]
[1762475227762,0.00294154,3300.0,3299.9,3.9748]
[1762475228169,0.00294154,3300.0,3299.9,4.09602]
[1762475228675,0.00515205,3300.0,3299.9,4.09602]
[1762475229575,0.00515205,3300.0,3299.9,3.9748]
[1762475229773,0.00515205,3300.0,3299.9,3.97479]
[1762475229972,0.49633205,3300.0,3299.9,3.2078]
[1762475230165,0.00515205,3300.0,3299.9,3.9748]
[1762475230368,2.05e-06,3300.0,3299.9,3.9748]
[1762475230674,3.2078,3301.1,3301.0,0.76683]
[1762475230875,3.2078,3301.5,3301.2,0.491]
[1762475231064,0.491,3301.2,3301.1,0.491]
[1762475231265,3.2078,3301.5,3300.6,3.86418]
[1762475231474,0.49105,3300.9,3300.7,0.49107]
[1762475231777,0.00312953,3300.9,3300.8,0.76686]
[1762475233377,2.953e-05,3300.9,3300.8,0.76686]
[1762475233579,2.953e-05,3300.9,3300.8,0.88804]
[1762475236072,0.77228,3300.7,3300.6,3.2078]
[1762475236269,0.49109,3300.6,3300.5,0.00454482]
[1762475236674,0.95359,3300.6,3300.5,0.00454482]
[1762475236884,1.07479,3300.6,3300.5,0.00454482]
[1762475237577,6.3617,3300.6,3299.8,3.2078]
[1762475237776,0.1813,3300.6,3299.8,3.2078]
[1762475237977,0.1813,3300.6,3300.2,0.49115]
[1762475238177,0.49112,3300.4,3300.3,0.49113]
[1762475238380,0.49115,3300.3,3300.2,0.49115]
[1762475238773,0.49117,3300.1,3300.0,0.49118]
[1762475239482,0.12122,3300.5,3300.0,0.49118]
[1762475239884,0.1212,3300.4,3300.0,0.49118]
[1762475240174,0.95368,3300.0,3299.9,0.00454482]
[1762475240376,0.61235,3300.3,3300.0,0.49118]
[1762475240581,0.77237,3300.1,3300.0,0.49118]
[1762475240771,3.2078,3300.4,3299.9,0.00454482]
[1762475240772,0.49118,3300.0,3299.9,0.00454482]
[1762475240974,0.49118,3300.0,3299.9,0.49574482]
[1762475241177,0.77242,3299.7,3299.6,0.00354703]
[1762475241571,0.89364,3299.7,3299.6,0.00354703]
[1762475242780,0.40242,3299.7,3299.6,0.49478703]
[1762475243481,0.89364,3299.7,3299.6,0.00354703]
[1762475243985,0.77242,3299.7,3299.6,0.00354703]
[1762475244782,0.89364,3299.7,3299.6,0.00354703]
[1762475244975,0.1763,3298.8,3298.2,3.2078]
[1762475245171,0.49135,3298.9,3298.2,3.3731]
[1762475245370,3.2078,3299.2,3298.2,3.3731]
[1762475245582,0.49138,3298.7,3298.6,0.49137]
[1762475245774,0.49136,3298.8,3298.7,0.49137]
[1762475245978,0.49136,3298.8,3298.7,0.49401055]
[1762475246178,0.94886,3298.8,3298.7,0.00264055]
[1762475246375,4.27792,3298.8,3298.7,0.00264055]
[1762475247577,0.49148,3298.0,3297.9,3.69928]
[1762475247776,0.77268,3298.0,3297.9,3.69928]
[1762475248280,0.77268,3298.0,3297.9,3.2078]
[1762475248485,0.49151,3297.8,3297.7,0.49151]
[1762475248787,0.49151,3297.8,3297.7,0.49433246]
[1762475248978,0.28448049,3298.0,3297.9,0.49149]
[1762475249176,0.28448049,3298.0,3297.7,0.00282246]
[1762475249177,0.77596049,3298.0,3297.8,0.49151]
[1762475249377,3.98376049,3298.0,3297.9,0.49149]
[1762475249580,0.00328049,3298.0,3297.9,0.49149]
[1762475249782,3.69913,3299.0,3298.4,0.2758]
[1762475249987,0.49137,3298.8,3298.6,0.49138]
[1762475250177,0.77263,3298.3,3298.2,0.12125999]
[1762475250378,0.77267,3298.1,3298.0,0.49146]
[1762475250880,0.7760232,3298.1,3298.0,0.49146]
[1762475251382,0.0033532,3298.1,3297.7,0.00282246]
[1762475251581,3.2078,3298.0,3297.7,0.00282246]
[1762475251887,0.4915,3297.9,3297.8,0.49149]
[1762475252387,0.0033532,3298.1,3298.0,0.76728]
[1762475252683,0.0033532,3298.1,3298.0,0.49148]
[1762475252882,3.4923532,3298.1,3297.9,0.49148]
[1762475253186,0.2812,3298.0,3297.9,0.49148]
[1762475254188,0.49151,3297.8,3297.7,0.00282246]
[1762475255386,0.2812,3297.8,3297.7,0.49434246]
[1762475255578,0.77271,3297.8,3297.7,0.49434246]
[1762475255777,0.77271,3297.8,3297.7,0.00282246]
[1762475256182,0.77271,3297.8,3297.7,2.246e-05]
[1762475256383,0.49164,3296.9,3296.7,0.49166]
[1762475256688,3.2078,3296.8,3296.2,0.12132]
[1762475256887,0.00454482,3297.1,3297.0,0.49163]
[1762475257079,0.00454482,3297.1,3297.0,4.11303]
[1762475257281,0.00454482,3297.1,3297.0,12.11526344]
[1762475257479,0.12132001,3297.9,3297.4,0.2492]
[1762475257679,3.2078,3298.0,3297.9,0.49149]
[1762475258080,3.2078,3298.0,3297.9,0.74069]
[1762475258281,3.2078,3298.4,3298.0,0.74538]
[1762475258584,3.21234482,3298.4,3298.0,0.74538]
[1762475258887,3.21234482,3298.4,3298.0,0.86666]
[1762475258888,0.00454482,3298.4,3298.0,0.86666]
[1762475259086,0.00454482,3298.4,3298.0,8.86666]
[1762475259278,0.00454482,3298.4,3298.3,0.74533]
[1762475259478,0.00454482,3298.4,3298.3,3.95313]
[1762475259685,0.00454482,3298.4,3298.3,11.95313]
[1762475259976,0.00454482,3298.4,3298.3,12.07441]
[1762475260382,0.00777998,3298.4,3298.3,12.07441]
[1762475260587,3.2078,3299.2,3299.1,0.49131]
[1762475260785,3.2078,3299.2,3298.6,0.12123999]
[1762475260986,3.2078,3299.2,3298.3,3.2078]
[1762475261190,0.76658,3298.7,3298.3,3.2078]
[1762475261488,0.27756493,3298.7,3298.5,0.4914]
[1762475261784,0.00236493,3298.7,3298.6,0.2539]
[1762475262679,0.00236493,3298.7,3298.3,3.2078]
[1762475263283,0.00236493,3298.7,3298.5,0.4914]
[1762475264088,0.00236493,3298.7,3298.6,0.49139]
[1762475265488,0.00236493,3298.7,3297.6,0.1582]
[1762475265687,3.2078,3298.0,3297.1,3.2078]
[1762475265886,0.4916,3297.2,3297.0,0.49385344]
[1762475266081,0.4916,3297.2,3297.1,0.49161]
[1762475266281,0.49161,3297.1,3297.0,0.00223344]
[1762475266501,0.75561,3297.1,3297.0,0.00223344]
[1762475266893,0.87693001,3297.1,3297.0,0.00223344]
[1762475267194,0.38532001,3297.1,3297.0,0.00223344]
[1762475268294,0.75566,3296.8,3296.7,0.00454482]
[1762475268489,3.96346,3296.8,3296.7,0.00454482]
[1762475268890,4.0848,3296.8,3296.7,0.00454482]
[1762475269088,3.96346,3296.8,3296.7,0.00454482]
[1762475269288,3.96346,3296.8,3296.7,0.0074922]
[1762475273495,0.75576,3296.1,3296.0,0.12134]
[1762475273704,0.75576,3296.1,3295.6,3.2078]
[1762475273705,0.264,3295.8,3295.7,0.49181]
[1762475274203,0.49182,3295.7,3295.6,3.69964]
[1762475274601,0.49501366,3295.7,3295.6,3.70357359]
[1762475274804,0.00319366,3295.7,3295.6,3.70357359]
[1762475275101,3.2078,3296.9,3295.8,0.1609]
[1762475275288,0.49166,3296.8,3296.6,0.49168]
[1762475275494,0.49167,3296.7,3296.6,0.49168]
[1762475276005,3.2078,3296.9,3296.8,0.49166]
[1762475276300,0.00255367,3296.9,3296.6,3.2078]